Cogmind - Beta 13 @@@ ROGUE MODE // 2024.04.29 @ 19:18:38 Player: Fusha Result: Destroyed by G-47 Trooper with Particle Gun Performance ------------- Evolutions (3) 1500 Regions Visited (4) 800 Robots Destroyed (130) 650 Value Destroyed (4397) 4397 Prototype IDs (5) 100 Alien Tech Used (0) 0 Bonus (1284) 1284 TOTAL SCORE: 8731 Bonus ------- High Alert Combat Kills 1284 Cogmind --------- Core Integrity 0/700 Matter 186/300 Energy 275/290 System Corruption 7% Temperature Cool (9) Movement Walking (260) Ox2 Location -7/Factory Parts ------- > --- POWER (1) -------- Reinforced Deuterium Engine > --- PROPULSION (4) --- Carbon-fiber Leg > --- UTILITY (4) ------ Advanced Heat Sink Medium Storage Unit > --- WEAPON (4) ------- Assault Cannon Mini Assault Cannon Mini Assault Cannon Mini Assault Cannon > --- INVENTORY (10) --- Micro Nuclear Core Improved Heat Sink Improved Heat Sink Advanced Heat Sink High-capacity Matter Pod (83) Gatling Laser Peak State ------------ > --- POWER ------------ Reinforced Deuterium Engine > --- PROPULSION ------- Aluminum Leg Titanium Leg Improved Carbon-fiber Leg Improved Titanium Leg > --- UTILITY ---------- Improved Heat Sink Advanced Heat Sink Medium Storage Unit Hacking Suite > --- WEAPON ----------- Advanced Assault Cannon Advanced Assault Cannon Gauss Cannon Mini Assault Cannon > --- INVENTORY -------- Micro Nuclear Core High-capacity Matter Pod High-capacity Matter Pod Gatling Laser Gauss Rifle Assault Cannon Gauss Cannon Mini Assault Cannon [Rating: 47] Favorites ----------- Power Ion Engine Engine Ion Engine Power Core Light Nuclear Core Propulsion Aluminum Leg Leg Aluminum Leg Utility Improved Heat Sink Device Improved Heat Sink Storage Medium Storage Unit Processor Advanced Targeting Computer Hackware Hacking Suite Weapon Gauss Cannon Energy Gun Medium Laser Ballistic Gun Assault Rifle Ballistic Cannon Gauss Cannon Impact Weapon Heavy Flail Build | -11 -10 -9 -8 -7 ------- Run | Yrd Mat Mat Mat Fac Slots Evolved 6 | . . 2 2 2 Power . | . . . . . Propulsion 2 | . . 2 . . Utility 2 | . . . . 2 Weapon 2 | . . . 2 . Parts Attached 113 | 6 8 11 8 80 Power 14 | 1 2 1 1 9 Engine 9 | 1 1 1 1 5 Core 5 | . 1 . . 4 Reactor . | . . . . . Propulsion 31 | 2 4 4 1 20 Treads . | . . . . . Leg 31 | 2 4 4 1 20 Wheel . | . . . . . Hover . | . . . . . Flight . | . . . . . Utility 23 | 1 1 1 4 16 Device 14 | . 1 . . 13 Storage 3 | 1 . . 2 . Processor 5 | . . 1 2 2 Hackware 1 | . . . . 1 Protection . | . . . . . Artifact . | . . . . . Weapon 45 | 2 1 5 2 35 Energy Gun 1 | 1 . . . . Energy Cannon . | . . . . . Ballistic Gun 9 | 1 1 . 1 6 Ballistic Cannon 31 | . . 5 1 25 Launcher . | . . . . . Special Weapon . | . . . . . Impact Weapon 4 | . . . . 4 Slashing Weapon . | . . . . . Piercing Weapon . | . . . . . Special Melee Weapon . | . . . . . Unidentified Prototypes 4 | . . . . 4 Parts Lost 29 | . . . . 29 Power 3 | . . . . 3 Propulsion 10 | . . . . 10 Utility 7 | . . . . 7 Weapon 9 | . . . . 9 Highest Loss Streak 8 | . . . . 8 To Critical Strikes . | . . . . . Average Slot Usage (%) 95 | . 96 94 97 95 Engine 6 | . 7 11 9 4 Core 2 | . 6 . . 2 Leg 31 | . 28 39 36 28 Device 8 | . 10 . . 12 Storage 8 | . 14 11 9 7 Processor 4 | . . 10 9 3 Hackware 1 | . . . . 3 Ballistic Gun 7 | . 27 . 6 5 Ballistic Cannon 20 | . . 21 27 23 Naked Turns . | . . . . . Heaviest Build 51 | 14 15 21 42 51 Greatest Support 70 | 20 20 40 45 70 Greatest Overweight (x) 12 | . . . . 12 Average Overweight (x) . | . . . . . Largest Inventory Capacity 15 | 8 8 8 15 10 Average Capacity 9 | 7 8 8 8 10 Most Carried 10 | . 8 8 8 10 Average Carried 7 | . 6 7 7 8 Final Capacity 10 | 8 8 8 10 10 Final Carried 8 | . 8 8 5 6 Class Distribution -------------------- 34% | Scavenger-Gunner 21% | Mutant 14% | Scavenger-Mutant 12% | Skirmisher 10% | Gunner 5% | Scavenger-Skirmisher Dominant Class ---------------- Mutant | -10/Materials Scavenger-Mutant | -9/Materials Scavenger-Gunner | -8/Materials Scavenger-Gunner | -7/Factory Resources | -11 -10 -9 -8 -7 ----------- Run | Yrd Mat Mat Mat Fac Matter Collected 6153 | 269 546 725 177 4436 Remotely 95 | . . . . 95 Salvage Created 4985 | 78 564 764 193 3386 Parts 226 | 2 28 46 10 140 Haulers Intercepted 9 | . 2 3 . 4 Recyclers Shooed 6 | . . 2 . 4 Parts Field Recycled . | . . . . . Retrieved Matter . | . . . . . Parts Self-Destructed . | . . . . . Prevented . | . . . . . Kills | -11 -10 -9 -8 -7 ------- Run | Yrd Mat Mat Mat Fac Combat Hostiles Destroyed 86 | . 10 18 3 55 Melee 1 | . . . . 1 Guns 21 | . 10 . . 11 Cannons 63 | . . 18 3 42 AOE 1 | . . . . 1 Classes Destroyed 18 | 1 4 3 1 9 Worker 8 | . 1 1 . 6 Builder 2 | . . . . 2 Tunneler 1 | . . . . 1 Hauler 9 | . 2 3 . 4 Recycler 17 | 1 . 1 1 14 Mechanic 1 | . . . . 1 Operator 1 | . . . . 1 Watcher 7 | . 1 2 . 4 Swarmer 6 | . . 3 . 3 Grunt 46 | . 10 9 . 27 Brawler 7 | . . 1 . 6 Duelist 3 | . . . . 3 Protector 1 | . . . . 1 Sentry 13 | . . 5 2 6 Specialist 3 | . . . . 3 Hunter 2 | . . . 1 1 Programmer 4 | . . . . 4 Heavy 1 | . . . . 1 Best Kill Streak 13 | 1 3 4 3 13 Combat Bots Only 8 | . 3 4 2 8 Max Kills in Single Turn 6 | 1 1 1 1 6 Gunslinging . | . . . . . Exploded 1 | . . . . 1 Melee 1 | . . . . 1 Uniques/NPCs Destroyed . | . . . . . Combat | -11 -10 -9 -8 -7 -------- Run | Yrd Mat Mat Mat Fac Hostile Shots Fired 654 | . 45 49 12 548 Missed 207 | . 10 12 3 182 Damage Taken 6080 | . 445 454 139 5042 Core 862 | . 111 38 . 713 Absorbed by Shields . | . . . . . Core Remaining (%) 86 | 100 55 90 100 . Volleys Fired 256 | 3 44 44 7 158 Largest 4 | 2 2 2 4 4 Hottest 192 | 70 40 88 152 192 Shots Fired 801 | 6 88 88 25 594 Gun 269 | 6 88 . 4 171 Cannon 532 | . . 88 21 423 Launcher . | . . . . . Special . | . . . . . Kinetic 798 | 3 88 88 25 594 Thermal 3 | 3 . . . . Explosive . | . . . . . Electromagnetic . | . . . . . Robot Hit Streak 13 | 3 13 10 7 11 Robot Miss Streak 7 | 1 4 2 2 7 Penetration Max 1 | . . . . 1 Secondary Targets . | . . . . . Shots Hit Robots 446 | 5 60 56 15 310 Core Hits 213 | 2 27 26 5 153 Critical Kills . | . . . . . Critical Parts Destroyed 2 | . . . . 2 Critical Strikes 28 | . . 2 . 26 Destroy 2 | . . . . 2 Blast 25 | . . 2 . 23 Smash 1 | . . . . 1 Melee Attacks 7 | . . . . 7 Impact 7 | . . . . 7 Slashing . | . . . . . Piercing . | . . . . . Sneak Attacks . | . . . . . Combat Hostiles . | . . . . . Follow-up Attacks . | . . . . . Damage Inflicted 11759 | 64 776 1345 283 9291 Guns 2920 | 64 773 . 53 2030 Cannons 7867 | . . 1329 230 6308 Explosions 615 | . . . . 615 Melee 304 | . . . . 304 Ramming 53 | . 3 16 . 34 Kinetic 10750 | 27 773 1329 283 8338 Thermal 652 | 37 . . . 615 Explosive . | . . . . . Electromagnetic . | . . . . . Impact 304 | . . . . 304 Slashing . | . . . . . Piercing . | . . . . . Highest Corruption 7 | . . . . 7 Average Corruption 5 | . . . . 5 Corruption Purged . | . . . . . Corruption Blocked . | . . . . . Effects 38 | . . . . 38 Message Errors 10 | . . . . 10 Matter Fused 13 | . . . . 13 Heat Flow Errors 2 | . . . . 2 Energy Discharges 5 | . . . . 5 Parts Rejected 1 | . . . . 1 Parts Fused 1 | . . . . 1 Data Loss (minor) 5 | . . . . 5 Alerts 1 | . . . . 1 Overload Shots . | . . . . . Overflow Damage 476 | . . 12 . 464 Projectiles 185 | . . 12 . 173 Explosions 135 | . . . . 135 Melee 156 | . . . . 156 Knockbacks 75 | . . 13 . 62 Impact 5 | . . 1 . 4 Kinetic 64 | . . 11 . 53 Secondary 6 | . . 1 . 5 Self-Inflicted Damage 17 | . . . . 17 Shots 1 | . . . . 1 Rammed . | . . . . . Targets Rammed 12 | . 1 6 . 5 Kicked 12 | . 1 6 . 5 Crushed . | . . . . . Highest Temperature 487 | 47 8 120 213 487 Average Temperature 96 | 28 5 34 87 120 Received Heat Transfer 1950 | . 270 156 18 1506 Effects 10 | . . . . 10 Shutdowns 1 | . . . . 1 Energy Bleed 2 | . . . . 2 Interference 4 | . . . . 4 Damage (major) 3 | . . . . 3 Siege Activations . | . . . . . Robots Corrupted . | . . . . . Combat Hostiles . | . . . . . Parts Fried . | . . . . . Impact Corruptions 8 | . . . . 8 Robots Melted . | . . . . . Combat Hostiles . | . . . . . Parts Melted 1 | . . . . 1 Heat Transferred 461 | 111 . . . 350 Parts Sabotaged . | . . . . . Parts Stolen . | . . . . . Parts Stripped . | . . . . . Power Chain Reactions . | . . . . . Alert | -11 -10 -9 -8 -7 ------- Run | Yrd Mat Mat Mat Fac Peak Influence 1528 | 5 244 353 287 1528 Initial 130 | . 3 41 130 130 Average 529 | 1 97 171 201 811 Maximum Alert Level 4 | . 1 1 1 4 Low Security (%) 35 | 100 82 58 67 9 Level 1 22 | . 17 41 32 15 Level 2 3 | . . . . 5 Level 3 22 | . . . . 39 Level 4 16 | . . . . 28 Level 5 . | . . . . . High Security . | . . . . . Max Security . | . . . . . Squads Dispatched 21 | . 1 1 . 19 Investigation 1 | . . 1 . . Extermination 4 | . . . . 4 Reinforcement 9 | . 1 . . 8 Assault 4 | . . . . 4 Garrison 3 | . . . . 3 Intercept . | . . . . . Searches Triggered . | . . . . . Construction Impeded 3 | . . . . 3 Haulers Reinforced . | . . . . . Active Scanning Responses . | . . . . . Cargo Convoy Interrupts . | . . . . . Stealth | -11 -10 -9 -8 -7 --------- Run | Yrd Mat Mat Mat Fac Distress Signals 3 | . 2 1 . . Communications Jammed . | . . . . . Distress Signals . | . . . . . Times Spotted 124 | . 18 21 3 82 Peak Tracking Total 8 | . 3 4 2 8 Tactical Retreats 4 | . 2 . . 2 Traps | -11 -10 -9 -8 -7 ------- Run | Yrd Mat Mat Mat Fac Traps Triggered 7 | . . . . 7 Indirectly . | . . . . . Trap Hack Attempts . | . . . . . Triggered . | . . . . . Disarmed . | . . . . . Reprogrammed . | . . . . . Reused . | . . . . . Traps Extracted . | . . . . . Installed . | . . . . . Triggered . | . . . . . Machines | -11 -10 -9 -8 -7 ---------- Run | Yrd Mat Mat Mat Fac Machines Disabled 22 | . . 1 . 21 Max in Single Turn 6 | . . 1 . 6 Garrison Access 1 | . . . . 1 Machines Repaired . | . . . . . Machines Dismantled . | . . . . . Machines Sabotaged . | . . . . . Overloaded Fab Kills . | . . . . . Hacking | -11 -10 -9 -8 -7 --------- Run | Yrd Mat Mat Mat Fac Machines Accessed 28 | . 10 6 6 6 Terminals 21 | . 8 4 6 3 Fabricators 1 | . . . . 1 Repair Stations . | . . . . . Recycling Units 4 | . 2 1 . 1 Scanalyzers 1 | . . 1 . . Garrison Access 1 | . . . . 1 Total Hacks 78 | . 27 20 22 9 Successful 42 | . 14 16 11 1 Failed 35 | . 13 4 10 8 Catastrophic 7 | . 1 1 2 3 Database Lockouts 1 | . . . 1 . Manual 53 | . 24 9 18 2 Terminals 64 | . 25 11 22 6 Fabricators 1 | . . . . 1 Repair Stations . | . . . . . Recycling Units 5 | . 2 2 . 1 Scanalyzers 7 | . . 7 . . Garrison Access 1 | . . . . 1 Terminal Hacks 18 | . 7 4 7 . Robot Analysis 6 | . 3 . 3 . Emergency Access Points 1 | . . . 1 . Terminal Index 3 | . 1 1 1 . Alert Level 3 | . 1 1 1 . Unreport Threat 1 | . 1 . . . Locate Traps 2 | . 1 1 . . Zone Layout 2 | . . 1 1 . Fabricator Hacks . | . . . . . Repair Station Hacks . | . . . . . Recycling Unit Hacks . | . . . . . Scanalyzer 7 | . . 7 . . Insert Component 4 | . . 4 . . Analyze 3 | . . 3 . . Garrison Access Hacks . | . . . . . Unauthorized Hacks 17 | . 7 5 4 1 Terminals 14 | . 6 4 4 . Botnet 14 | . 6 4 4 . Fabricators . | . . . . . Repair Stations . | . . . . . Recycling Units 3 | . 1 1 . 1 Reject 3 | . 1 1 . 1 Scanalyzers . | . . . . . Garrison Access . | . . . . . Data Cores Recovered 1 | . . . . 1 Used 1 | . . . . 1 Hacking Detections 27 | . 9 6 6 6 Full Trace Events 1 | . . 1 . . Feedback Events . | . . . . . Feedback Blocked . | . . . . . Robot Schematics Acquired . | . . . . . Robots Built . | . . . . . Authchips . | . . . . . Time . | . . . . . Total Robot Build Rating . | . . . . . Part Schematics Acquired 3 | . . 3 . . Parts Built . | . . . . . Authchips . | . . . . . Time . | . . . . . Total Part Build Rating . | . . . . . Parts Repaired . | . . . . . Time . | . . . . . Parts Recycled . | . . . . . Recycled Matter . | . . . . . Retrieved Matter . | . . . . . Retrieved Components . | . . . . . Parts Scanalyzed 3 | . . 3 . . Part Schematics Acquired 3 | . . 3 . . Parts Damaged . | . . . . . Bothacking | -11 -10 -9 -8 -7 ------------ Run | Yrd Mat Mat Mat Fac Used RIF Installer . | . . . . . Robots Hacked . | . . . . . Non-combat . | . . . . . Combat . | . . . . . Robot Hacks Applied . | . . . . . Relay Couplers Released 1 | . . . . 1 Machine Destruction 1 | . . . . 1 Fabnet Peak Effective % . | . . . . . Robots Rewired . | . . . . . Allies Hacked . | . . . . . Hacks Repelled . | . . . . . Allies | -11 -10 -9 -8 -7 -------- Run | Yrd Mat Mat Mat Fac Total Allies . | . . . . . Largest Group . | . . . . . Highest-Rated Group . | . . . . . Highest-Rated Ally . | . . . . . Total Orders . | . . . . . Ally Attacks . | . . . . . Total Damage . | . . . . . Kills . | . . . . . Allies Corrupted . | . . . . . Allies Melted . | . . . . . Intel | -11 -10 -9 -8 -7 ------- Run | Yrd Mat Mat Mat Fac Robot Analysis Total 6 | . 3 . 3 . Derelict Logs Recovered . | . . . . . Drone Launches . | . . . . . Drone Recoveries . | . . . . . Exploration | -11 -10 -9 -8 -7 ------------- Run | Yrd Mat Mat Mat Fac Turns Passed 4490 | 55 590 896 371 2578 Spaces Moved 2548 | 31 318 521 263 1415 Core 6 | 4 . . . 2 Treads . | . . . . . Legs 2542 | 27 318 521 263 1413 Wheels . | . . . . . Hover . | . . . . . Flight . | . . . . . Fastest Speed 50 | 50 120 120 120 120 Average Speed 122 | 110 120 120 120 124 Slowest Speed 650 | 120 120 120 120 650 Overloaded Moves . | . . . . . Propulsion Burnouts . | . . . . . Robots Hopped . | . . . . . Cave-ins Triggered . | . . . . . Exploration Rate (%) 30 | 3 48 40 23 38 Regions Visited 4 Branch Regions . Pre-discovered Areas . | . . . . . Known Exits Taken . | . . . . . Unknown Exits Taken 4 | 1 1 1 1 . Scrap Searched . | . . . . . Spaces Dug 1 | . . . . 1 Terrain Destroyed 229 | . . 15 8 206 Melee . | . . . . . Projectile 138 | . . 15 8 115 AOE 91 | . . . . 91 Terrain Rammed . | . . . . . Walls Destroyed . | . . . . . Machines Disabled . | . . . . . Actions | -11 -10 -9 -8 -7 --------- Run | Yrd Mat Mat Mat Fac Total 3334 | 42 439 706 301 1846 Wait 270 | 3 57 102 15 93 Move 2544 | 30 317 520 262 1415 Hop . | . . . . . Pick Up 48 | . 6 8 3 31 Fast Attach 57 | 6 3 6 3 39 Attach 25 | . . 2 1 22 Detach 5 | . 1 . . 4 Swap 31 | . 5 3 4 19 Drop 71 | . 5 15 6 45 Fire 256 | 3 44 44 7 158 Melee 5 | . . . . 5 Ram . | . . . . . Kick 12 | . 1 6 . 5 Crush . | . . . . . Escape Stasis 10 | . . . . 10 Rewire . | . . . . . Trap . | . . . . . Miscellaneous . | . . . . . Route ------- -11/Scrapyard -10/Materials (discovered 3 exits: *Mat x2 / [*Min]) -9/Materials -8/Materials -7/Factory History --------- Turn | Location | Event 5 | -11/Scrapyard | Discovered new exit (range 15) 56 | -11/Scrapyard | Entered Materials 301 | -10/Materials | Build established: Mutant 361 | -10/Materials | Discovered new exit (range 13) 490 | -10/Materials | Discovered new exit (range 16) 605 | -10/Materials | Discovered new exit (range 3) 646 | -10/Materials | Entered another Materials area 646 | -9/Materials | Evolved 2 slots: Propulsion x2 1341 | -9/Materials | Build established: Scavenger-Mutant 1515 | -9/Materials | Discovered new exit (range 16) 1542 | -9/Materials | Entered another Materials area 1542 | -8/Materials | Evolved 2 slots: Weapon x2 1826 | -8/Materials | Build established: Scavenger-Gunner 1867 | -8/Materials | Discovered new exit (range 13) 1867 | -8/Materials | Central database locked down 1913 | -8/Materials | Entered Factory 1913 | -7/Factory | Evolved 2 slots: Utility x2 2274 | -7/Factory | Build established: Gunner 2604 | -7/Factory | Build established: Scavenger-Gunner 2669 | -7/Factory | Garrison activated, responded to threat 2785 | -7/Factory | Destroyed 7 combat bots 2788 | -7/Factory | Lost 4 parts (1p1n1u1w) 3113 | -7/Factory | First assault squad dispatched 3223 | -7/Factory | Lost 7 parts (1p2n1u3w) 3588 | -7/Factory | Core integrity fell below 50% 3790 | -7/Factory | Build established: Skirmisher 4376 | -7/Factory | Garrison activated, responded to threat 4408 | -7/Factory | Core integrity fell below 20% 4442 | -7/Factory | Destroyed 8 combat bots 4447 | -7/Factory | Lost 8 parts (1p4n3w) 4491 | -7/Factory | Destroyed by G-47 Trooper with Particle Gun Last Messages --------------- 04475_ Aluminum Leg destroyed. 04476_ G-47 Trooper emerges from the garrison. 04476_ G-47 Trooper knocked back. 04476_ K-01 Serf collects debris. 04477_ Gauss Cannon destroyed. 04479_ Imp. Heat Sink destroyed. 04480_ K-01 Serf collects debris. 04482_ Penetrated by Slug. 04482_ Knocked back. 04484_ K-01 Serf collects debris. 04484_ H-61 Shepherd destroyed. 04484_ Imp. Heat Sink destroyed. 04485_ K-01 Serf collects debris. 04487_ Acquired 5 matter. 04490_ System corrupted: Matter fused (-10). 04490_ K-01 Serf collects debris. 04490_ Dropped Hcp. Matter Pod. 04491_ Extracted 200 matter. 04491_ K-01 Serf collects debris. 04491_ G-47 Trooper destroyed. Map ----- +----------------------------------------------------+ | ????# """""" #?????????# | | ????##?????????????????# | | ???????????????????????# | | ???????????????????????# | | ????????????????????????# | | ##+######### ????????????????????????# | | ???????????????????????###########+######/######## | | ??????????????????????? | | ??????????????????????? | | ?????????????????????????? """ | | ??????????????????????"?? """"" | | ?????????????????????"" """"" | | ????????????????????? ######### | | ?????????????????? ????"" """ # # | | ?????????????????? ????" """"" # #? | | ?????????????????? ????" """"" ! + # | | ????????????????? ?? !! # " " " # | | ????????????????""" """ """" !! # " " " # | | ???????????????"""" """"" """" # " " " # | | ???????????? ??"""" """"" """" # " " " # | | ??????????? g # " " " # | | ???????????? """ """ """ # " " " # | | ?????????# " " """"" """"" # " " " # | | ????????? % "" " % """"" # " " " # | | ?????????# %![i %%g!%%!% # " " " # | | ???????? %%%%= *g!=! [@ ! # # | | ???????######+####kk%;[%;##;##### # !# | | ?????# ; !x% =!*!%==# ## # # | | ??????? "" # "= %"! ##??# + # | | ????????? ???# " "[ """ #???# # [ # | | ???????????????# """"%"""" #???# ######+##%= | | ???????????????# """"%"""" ##### ###### ! | | ???????????????# g + %* =**% | | ???????????????# """" """" #######+#############+ | | ???????????????# """" """" #???? ""?" #?# | | ???????????????# """" """" !#?? "F ??# """ | | ???????????????# """" """" # #?# """ | | ???????????????# # #?# """ | | ???????????????# # ! #?# | | ???????????????############## #?# """ | | ????????????????????????????# """" "" #?# """ | | ????????????????????????????# """"""" #?# "?" | | ????????????????????????????# """"""" ??# ? | | ????????????????????????????#????"""" ??# ! ? | | ????????????????????????????????????? ??# ?? | | ????????????????????????????????????? ???? ?? | | ??????????????????????????????????????#?????##??## | | ?????????????????????????????????????????????????? | | ?????????????????????????????????????????????????? | | ?????????????????????????????????????????????????? | +----------------------------------------------------+ Best States ------------- Heat Dissipation 81 Energy Generation 17 Energy Capacity 300 Matter Stores 300 Matter Capacity 300 Sight Range 16 Robot Scan Range 15 Terrain Scan Density 10 Evasion (%) 55 Targeting Accuracy 16 Recoil Reduction 4 Offensive Hacking 10 Item Schematics ----------------- Grenade Launcher | -9/Materials | Scanalyzed Mace | -9/Materials | Scanalyzed Hcp. Matter Pod | -9/Materials | Scanalyzed Robot Schematics ------------------ None Fabricated ------------ Nothing Alien Tech Used ----------------- None Achievements -------------- None Challenges ------------ None Game ------ Seed TransmissionColdBoomstick Manual? 0 Play Time 01:01:34 Cumulative 109.3 hours Start 2024.04.29 @ 18:13:33 End 2024.04.29 @ 19:18:38 Sessions 1 Manual Loads 0 Difficulty Rogue Special Mode None Game No. 49 Rogue 49 Adventurer 0 Explorer 0 Win Type - Total 0 Types 0/0/0/0/0/0/0/0/0 Lore% 42 Gallery% 56 Achievement% 43 Wizard Run 0 Options --------- Layout 0 ASCII 1 Keyboard 0 Movement Mouse Keybinds 0 Fullscreen 2 Font 18/Terminus Map View 76x50 Zoom Use 0% Tactical HUD 1 Map Filters NONE Filters NONE Steam 1 RUN: c5524207-8333-4ef4-a42d-f28cc9079704